[Event "FIDE Chesscom Grand Swiss 2019"]
[Site "Douglas-Isle of Man"]
[Date "2019.10.14"]
[Round "5.35"]
[White "Prithu Gupta"]
[Black "Gavrilescu, David"]
[Result "1-0"]
[ECO "C11"]
[WhiteElo "2493"]
[BlackElo "2451"]
[Annotator "ChessBase"]
[PlyCount "49"]
[EventDate "2019.10.10"]
[EventType "swiss"]
[EventCountry "GBR"]
[SourceTitle "playchess.com"]
[Source "ChessBase"]
[SourceQuality "1"]
[TimeControl "40/6000+30:20/3000+30:900+30"]

1. e4 {[%emt 0:00:00]} e6 {[%emt 0:00:07]} 2. d4 {[%emt 0:00:00]} d5 {[%emt 0:00:35]} 3. Nc3 {[%emt 0:00:00]} Nf6 {[%emt 0:00:43]} 4. e5 {[%emt 0:00:00]} Nfd7 {[%emt 0:00:32]} 5. f4 {[%emt 0:00:00]} c5 {[%emt 0:00:51]} 6. Nf3 {[%emt 0:00:01]} Nc6 {[%emt 0:01:08]} 7. Be3 {[%emt 0:00:06]} cxd4 {[%emt 0:00:24]} 8. Nxd4 {[%emt 0:00:08]} Qb6 {[%emt 0:00:13]} 9. Qd2 {[%emt 0:04:59]} Qxb2 {[%emt 0:00:38]} 10. Rb1 {[%emt 0:00:07]} Qa3 {[%emt 0:00:09]} 11. Bb5 {[%emt 0:01:02]} Nxd4 {[%emt 0:00:57]} 12. Bxd4 {[%emt 0:00:04]} a6 {[%emt 0:00:32]} 13. Bxd7+ {[%emt 0:00:06]} Bxd7 {[%emt 0:00:08]} 14. Rb3 {[%emt 0:00:04]} Qe7 {[%emt 0:00:22]} 15. Rxb7 {[%emt 0:00:05]} Rc8 {[%emt 0:01:51]} 16. O-O {[%emt 0:07:11]} Qd8 {[%emt 0:03:09]} 17. f5 {[%emt 0:15:21]} Rc4 {[%emt 0:12:46]} 18. Rfb1 {[%emt 0:16:50]} exf5 {[%emt 0:07:25]} 19. Nxd5 {[%emt 0:06:42]} Be6 {[%emt 0:15:37]} 20. Bb6 {[%emt 0:04:31]} Bc5+ {[%emt 0:02:19]} 21. Bxc5 {[%emt 0:00:04]} Rxc5 {[%emt 0:00:32]} 22. Re7+ {[%emt 0:00:11]} Kf8 {[%emt 0:00:40]} 23. Qb4 {[%emt 0:00:05]} Rxd5 {[%emt 0:15:49]} 24. Rxe6+ {[%emt 0:00:05]} Kg8 {[%emt 0:00:07]} 25. Rd6 {[%emt 0:01:13]} 1-0

[Event "FIDE Chesscom Grand Swiss 2019"]
[Site "Douglas-Isle of Man"]
[Date "2019.10.14"]
[Round "5.36"]
[White "Arkell, Keith C"]
[Black "Kashlinskaya, Alina"]
[Result "1/2-1/2"]
[ECO "D02"]
[WhiteElo "2447"]
[BlackElo "2481"]
[Annotator "RC"]
[PlyCount "244"]
[EventDate "2019.10.10"]
[EventType "swiss"]
[EventCountry "GBR"]
[SourceTitle "playchess.com"]
[Source "ChessBase"]
[SourceQuality "1"]
[TimeControl "40/6000+30:20/3000+30:900+30"]

1. Nf3 {[%emt 0:00:00]} d5 {[%emt 0:00:00]} 2. d4 {[%emt 0:00:08]} Nf6 {[%emt 0:00:00]} 3. c3 {[%emt 0:01:19]} Bf5 {[%emt 0:08:08]} 4. Qb3 {[%emt 0:00:38]} Qc8 {[%emt 0:01:50]} 5. Bg5 {[%emt 0:01:31]} Nbd7 {[%emt 0:01:21]} 6. e3 {[%emt 0:03:56]} e6 {[%emt 0:03:43]} 7. c4 {[%emt 0:01:12]} c6 {[%emt 0:03:08]} 8. Nc3 {[%emt 0:03:36]} h6 {[%emt 0:01:27]} 9. Bf4 {[%emt 0:01:06]} Be7 {[%emt 0:02:52]} 10. cxd5 {[%emt 0:03:31]} exd5 {[%emt 0:01:51]} 11. Rc1 {[%emt 0:03:50]} O-O {[%emt 0:05:00]} 12. Be2 {[%emt 0:01:24]} b6 {[%emt 0:08:10]} 13. O-O {[%emt 0:35:03]} Qb7 {[%emt 0:00:36]} 14. Ne5 {[%emt 0:00:18]} Nxe5 {[%emt 0:14:40]} 15. Bxe5 {[%emt 0:01:06]} Qd7 {[%emt 0:00:22]} 16. Rfd1 {[%emt 0:10:56]} Qe6 {[%emt 0:00:43]} 17. Ba6 {[%emt 0:02:36]} Nd7 {[%emt 0:04:15]} 18. Bg3 {[%emt 0:01:25]} h5 {[%emt 0:08:39]} 19. Bb7 {[%emt 0:20:43]} h4 {[%emt 0:00:11]} 20. Bc7 {[%emt 0:00:17]} Bg4 {[%emt 0:11:40]} 21. Re1 {[%emt 0:03:11]} Rab8 {[%emt 0:14:14]} 22. Bxb8 {[%emt 0:00:25]} Nxb8 {[%emt 0:01:08]} 23. f3 {[%emt 0:05:35]} Bh5 {[%emt 0:00:07]} 24. Ne2 {[%emt 0:00:20]} g5 {[%emt 0:02:31]} 25. e4 {[%emt 0:02:58]} Qd7 {[%emt 0:01:26]} 26. Ba8 {[%emt 0:00:05]} dxe4 {[%emt 0:00:14]} 27. fxe4 {[%emt 0:00:37]} Bxe2 {[%emt 0:00:12]} 28. Rxe2 {[%emt 0:00:07]} Qxd4+ {[%emt 0:00:04]} 29. Kh1 {[%emt 0:00:21]} Qe5 {[%emt 0:05:43]} 30. Qc3 {[%emt 0:00:46]} Qf4 {[%emt 0:00:02]} 31. e5 {[%emt 0:01:23]} Rd8 {[%emt 0:00:58]} 32. h3 {[%emt 0:02:50]} Bc5 {[%emt 0:01:52]} 33. e6 {[%emt 0:01:38]} Bd6 {[%emt 0:00:30]} 34. exf7+ {[%emt 0:00:11]} Kxf7 {[%emt 0:00:59]} 35. g3 {[%emt 0:01:25]} Qxg3 {[%emt 0:01:50]} 36. Qxg3 {[%emt 0:00:38]} Bxg3 {[%emt 0:01:51]} 37. Bxc6 {[%emt 0:00:21]} Na6 {[%emt 0:00:49]} 38. Bf3 {[%emt 0:00:43]} Nb4 {[%emt 0:01:06]} 39. Rf1 {[%emt 0:00:17]} Bf4 {[%emt 0:01:29]} 40. a3 {[%emt 0:00:07]} Na6 {[%emt 0:03:39]} 41. Rfe1 {[%emt 0:03:11]} Nc7 {[%emt 0:03:14]} 42. Re7+ {[%emt 0:01:36]} Kg6 {[%emt 0:04:32]} 43. R1e2 {[%emt 0:05:01]} Bd6 {[%emt 0:04:28]} 44. R7e4 {[%emt 0:00:37]} Bg3 {[%emt 0:03:27]} 45. Rc4 {[%emt 0:02:34]} Kf6 {[%emt 0:07:14]} 46. Rc6+ {[%emt 0:02:56]} Rd6 {[%emt 0:00:45]} 47. Rxd6+ {[%emt 0:00:48]} Bxd6 {[%emt 0:00:06]} 48. Bg4 {[%emt 0:00:37]} Be5 {[%emt 0:01:43]} 49. Kg2 {[%emt 0:00:35]} Nb5 {[%emt 0:03:26]} 50. Rc2 {[%emt 0:00:23]} Bf4 {[%emt 0:02:03]} 51. Re2 {[%emt 0:01:57]} Nd4 {[%emt 0:03:16]} 52. Re4 {[%emt 0:00:24]} Be5 {[%emt 0:00:13]} 53. Kf2 {[%emt 0:01:36]} Nb3 {[%emt 0:03:09]} 54. Rb4 {[%emt 0:02:18]} Nc5 {[%emt 0:00:25]} 55. Ke3 {[%emt 0:03:04]} Ke7 {[%emt 0:00:26]} 56. Kd2 {[%emt 0:01:51]} Kd6 {[%emt 0:00:53]} 57. Kc2 {[%emt 0:00:56]} Kd5 {[%emt 0:00:10]} 58. Bf3+ {[%emt 0:00:06]} Kd6 {[%emt 0:00:06]} 59. a4 {[%emt 0:07:50]} Ne6 {[%emt 0:01:49]} 60. Bg4 {[%emt 0:01:09]} Nc5 {[%emt 0:09:52]} 61. b3 {[%emt 0:22:55]} Kd5 {[%emt 0:11:31]} 62. Bf3+ {[%emt 0:00:00]} Kd6 {[%emt 0:00:03]} 63. Rb5 {[%emt 0:00:00]} Na6 {[%emt 0:05:18]} 64. Rd5+ {[%emt 0:00:00]} Ke6 {[%emt 0:00:05]} 65. Rd8 {[%emt 0:00:00]} Nc5 {[%emt 0:00:54]} 66. Bg4+ {[%emt 0:00:00]} Ke7 {[%emt 0:03:25]} 67. Rd5 {[%emt 0:00:00]} Kf6 {[%emt 0:01:33]} 68. a5 {[%emt 0:03:30]} Na6 {[%emt 0:02:19]} 69. Rd7 {[%emt 0:00:07]} Nc7 {[%emt 0:01:08]} 70. axb6 {[%emt 0:00:30]} axb6 {[%emt 0:00:01]} 71. Kd3 {[%emt 0:00:25]} Bg3 {[%emt 0:01:01]} 72. b4 {[%emt 0:03:26]} Na6 {[%emt 0:00:51]} 73. Kc4 {[%emt 0:00:41]} Nc7 {[%emt 0:00:04]} 74. b5 {[%emt 0:02:14]} Bf4 {[%emt 0:00:52]} 75. Rh7 {[%emt 0:00:32]} Kg6 {[%emt 0:01:55]} 76. Rh8 {[%emt 0:00:39]} Bg3 {[%emt 0:00:22]} 77. Rf8 {[%emt 0:02:29]} Kg7 {[%emt 0:00:18]} 78. Rf1 {[%emt 0:04:31]} Bf4 {[%emt 0:00:15]} 79. Bd7 {[%emt 0:00:56]} Kf6 {[%emt 0:00:10]} 80. Re1 {[%emt 0:00:24]} Bg3 {[%emt 0:00:18]} 81. Re3 {[%emt 0:00:22]} Bf4 {[%emt 0:00:09]} 82. Re2 {[%emt 0:00:06]} Bg3 {[%emt 0:00:22]} 83. Kd4 {[%emt 0:00:11]} Bf4 {[%emt 0:00:32]} 84. Re1 {[%emt 0:01:45]} Bg3 {[%emt 0:00:09]} 85. Rd1 {[%emt 0:00:47]} Bf4 {[%emt 0:01:42]} 86. Ke4 {[%emt 0:00:07]} Bg3 {[%emt 0:00:10]} 87. Rc1 {[%emt 0:01:26]} Ke7 {[%emt 0:00:52]} 88. Rd1 {[%emt 0:00:15]} Kf6 {[%emt 0:00:01]} 89. Kf3 {[%emt 0:00:09]} Bf4 {[%emt 0:00:40]} 90. Kg4 {[%emt 0:00:11]} Ke5 {[%emt 0:00:08]} 91. Bc6 {[%emt 0:00:43]} Kf6 {[%emt 0:01:06]} 92. Rd7 {[%emt 0:01:32]} Ke6 {[%emt 0:00:03]} 93. Rd8 {[%emt 0:00:11]} Ke7 {[%emt 0:00:17]} 94. Rb8 {[%emt 0:00:36]} Be3 {[%emt 0:00:20]} 95. Kf5 {[%emt 0:00:57]} Kd6 {[%emt 0:00:56]} 96. Rd8+ {[%emt 0:01:15]} Kc5 {[%emt 0:00:24]} 97. Rd3 {[%emt 0:00:03]} Bf4 {[%emt 0:00:23]} 98. Rc3+ {[%emt 0:00:20]} Kb4 {[%emt 0:00:09]} 99. Rc2 {[%emt 0:00:08]} Kb3 {[%emt 0:00:36]} 100. Re2 {[%emt 0:00:06]} Kc4 {[%emt 0:00:18]} 101. Rb2 {[%emt 0:00:11]} Kc3 {[%emt 0:00:37]} 102. Rb1 {[%emt 0:00:01]} Kc4 {[%emt 0:00:32]} 103. Bd7 {[%emt 0:00:40]} Kc5 {[%emt 0:00:23]} 104. Rb2 {[%emt 0:01:10]} Kd6 {[%emt 0:00:14]} 105. Bc6 {[%emt 0:00:33]} Kc5 {[%emt 0:00:28]} 106. Ke4 {[%emt 0:00:20]} Kd6 {[%emt 0:00:36]} 107. Rc2 {[%emt 0:00:21]} Ke6 {[%emt 0:00:12]} 108. Rc3 {[%emt 0:00:23]} Kf6 {[%emt 0:00:14]} 109. Rd3 {[%emt 0:01:12]} Ne6 {[%emt 0:01:09]} 110. Rd5 {[%emt 0:00:21]} Nc7 {[%emt 0:00:10]} 111. Rd8 {[%emt 0:00:24]} Ne6 {[%emt 0:01:03]} 112. Re8 {[%emt 0:00:45]} Bg3 {[%emt 0:00:39]} 113. Rc8 {[%emt 0:01:04]} Bh2 {[%emt 0:00:56]} 114. Kf3 {[%emt 0:01:09]} Bf4 {[%emt 0:00:55]} 115. Kg4 {[%emt 0:00:20]} Kg6 {[%emt 0:01:03]} 116. Bd5 {[%emt 0:00:33]} Nc7 {[%emt 0:00:15]} 117. Bc4 {[%emt 0:00:07]} Kf6 {[%emt 0:00:18]} 118. Rf8+ {[%emt 0:00:58]} Ke5 {[%emt 0:00:36]} 119. Rb8 {[%emt 0:00:30]} Kd4 {[%emt 0:00:10]} 120. Bf1 {[%emt 0:00:41]} Kc5 {[%emt 0:00:05]} 121. Rc8 {[%emt 0:00:04]} Kb4 {[%emt 0:00:12]} 122. Rb8 {[%emt 0:01:04]} Kc5 {[%emt 0:00:03]} 1/2-1/2

[Event "FIDE Chesscom Grand Swiss 2019"]
[Site "Douglas-Isle of Man"]
[Date "2019.10.14"]
[Round "5.37"]
[White "Clarke, Brandon G I"]
[Black "Stefanova, Antoaneta"]
[Result "0-1"]
[ECO "B12"]
[WhiteElo "2445"]
[BlackElo "2479"]
[Annotator "ChessBase"]
[PlyCount "106"]
[EventDate "2019.10.10"]
[EventType "swiss"]
[EventCountry "GBR"]
[SourceTitle "playchess.com"]
[Source "ChessBase"]
[SourceQuality "1"]
[TimeControl "40/6000+30:20/3000+30:900+30"]

1. e4 {[%emt 0:00:00]} c6 {[%emt 0:02:10]} 2. d4 {[%emt 0:00:00]} d5 {[%emt 0:00:05]} 3. e5 {[%emt 0:00:00]} c5 {[%emt 0:00:10]} 4. dxc5 {[%emt 0:00:05]} e6 {[%emt 0:00:14]} 5. a3 {[%emt 0:00:03]} Bxc5 {[%emt 0:00:32]} 6. Nf3 {[%emt 0:00:59]} Ne7 {[%emt 0:01:31]} 7. Bd3 {[%emt 0:01:05]} Ng6 {[%emt 0:01:31]} 8. O-O {[%emt 0:03:39]} Qc7 {[%emt 0:00:52]} 9. Re1 {[%emt 0:04:17]} O-O {[%emt 0:01:19]} 10. b4 {[%emt 0:22:15]} Be7 {[%emt 0:03:00]} 11. Bb2 {[%emt 0:02:28]} a5 {[%emt 0:03:59]} 12. b5 {[%emt 0:03:02]} a4 {[%emt 0:01:01]} 13. Nbd2 {[%emt 0:01:19]} Nd7 {[%emt 0:00:54]} 14. c4 {[%emt 0:07:26]} Nc5 {[%emt 0:10:36]} 15. Bf1 {[%emt 0:05:15]} Rd8 {[%emt 0:05:09]} 16. Qc2 {[%emt 0:04:36]} b6 {[%emt 0:04:51]} 17. g3 {[%emt 0:14:13]} Bb7 {[%emt 0:02:06]} 18. h4 {[%emt 0:00:56]} Nb3 {[%emt 0:26:50]} 19. Nxb3 {[%emt 0:10:45]} axb3 {[%emt 0:00:09]} 20. Qxb3 {[%emt 0:02:22]} dxc4 {[%emt 0:00:18]} 21. Qc3 {[%emt 0:00:55]} Bc5 {[%emt 0:03:49]} 22. Rad1 {[%emt 0:12:29]} Bd5 {[%emt 0:05:28]} 23. Nd2 {[%emt 0:04:05]} Qe7 {[%emt 0:05:24]} 24. h5 {[%emt 0:02:22]} Nf4 {[%emt 0:15:27]} 25. Nxc4 {[%emt 0:01:22]} Qg5 {[%emt 0:01:31]} 26. Nd6 {[%emt 0:04:00]} Nxh5 {[%emt 0:10:21]} 27. Rd3 {[%emt 0:02:01]} Nf4 {[%emt 0:01:47]} 28. Ne4 {[%emt 0:00:03]} Qg6 {[%emt 0:02:05]} 29. Rf3 {[%emt 0:01:03]} Nh3+ {[%emt 0:00:39]} 30. Bxh3 {[%emt 0:00:08]} Bxe4 {[%emt 0:00:04]} 31. Rfe3 {[%emt 0:01:42]} Bxe3 {[%emt 0:00:36]} 32. Qxe3 {[%emt 0:00:02]} Bd5 {[%emt 0:00:29]} 33. Bd4 {[%emt 0:00:40]} Qc2 {[%emt 0:00:49]} 34. Bxb6 {[%emt 0:00:09]} Rdb8 {[%emt 0:00:21]} 35. Bf1 {[%emt 0:00:05]} Ra4 {[%emt 0:00:41]} 36. Bd3 {[%emt 0:00:38]} Qb3 {[%emt 0:00:37]} 37. Rb1 {[%emt 0:01:28]} Qa2 {[%emt 0:00:31]} 38. Bc7 {[%emt 0:00:09]} Rc8 {[%emt 0:00:23]} 39. Bd6 {[%emt 0:00:25]} Bb7 {[%emt 0:00:30]} 40. Rd1 {[%emt 0:00:51]} Kh8 {[%emt 0:00:34]} 41. Bf1 {[%emt 0:16:27]} Qc2 {[%emt 0:06:29]} 42. Rd4 {[%emt 0:03:17]} Rxd4 {[%emt 0:11:02]} 43. Qxd4 {[%emt 0:00:04]} Qc1 {[%emt 0:02:43]} 44. Bb4 {[%emt 0:14:29]} Bd5 {[%emt 0:08:04]} 45. Qe3 {[%emt 0:12:34]} Qd1 {[%emt 0:10:56]} 46. Bc3 {[%emt 0:05:57]} Qf3 {[%emt 0:02:15]} 47. Qxf3 {[%emt 0:00:08]} Bxf3 {[%emt 0:00:01]} 48. Bb4 {[%emt 0:00:49]} Rc1 {[%emt 0:00:10]} 49. b6 {[%emt 0:00:11]} Rb1 {[%emt 0:05:20]} 50. g4 {[%emt 0:00:02]} h6 {[%emt 0:00:52]} 51. Bc5 {[%emt 0:01:38]} Bb7 {[%emt 0:01:54]} 52. Bb4 {[%emt 0:00:30]} Ba6 {[%emt 0:00:38]} 53. b7 {[%emt 0:00:30]} Bxb7 {[%emt 0:00:12]} 0-1

[Event "FIDE Chesscom Grand Swiss 2019"]
[Site "Douglas-Isle of Man"]
[Date "2019.10.14"]
[Round "5.38"]
[White "Danielian, Elina"]
[Black "Movsziszian, Karen"]
[Result "1/2-1/2"]
[ECO "A42"]
[WhiteElo "2385"]
[BlackElo "2475"]
[Annotator "ChessBase"]
[PlyCount "97"]
[EventDate "2019.10.10"]
[EventType "swiss"]
[EventCountry "GBR"]
[SourceTitle "playchess.com"]
[Source "ChessBase"]
[SourceQuality "1"]
[TimeControl "40/6000+30:20/3000+30:900+30"]

1. d4 {[%emt 0:00:00]} d6 {[%emt 0:00:01]} 2. Nf3 {[%emt 0:00:00]} g6 {[%emt 0:00:04]} 3. g3 {[%emt 0:00:13]} Bg7 {[%emt 0:00:08]} 4. Bg2 {[%emt 0:00:05]} Nd7 {[%emt 0:01:55]} 5. c4 {[%emt 0:00:25]} e5 {[%emt 0:00:07]} 6. Nc3 {[%emt 0:00:12]} Ne7 {[%emt 0:00:09]} 7. O-O {[%emt 0:02:54]} O-O {[%emt 0:00:06]} 8. e4 {[%emt 0:01:31]} exd4 {[%emt 0:00:31]} 9. Nxd4 {[%emt 0:00:26]} Nc6 {[%emt 0:00:03]} 10. Nxc6 {[%emt 0:04:52]} bxc6 {[%emt 0:01:50]} 11. Qc2 {[%emt 0:00:35]} Ne5 {[%emt 0:06:44]} 12. c5 {[%emt 0:09:12]} dxc5 {[%emt 0:03:43]} 13. Rd1 {[%emt 0:03:55]} Qe7 {[%emt 0:01:15]} 14. h3 {[%emt 0:02:26]} c4 {[%emt 0:01:27]} 15. Be3 {[%emt 0:01:55]} Be6 {[%emt 0:01:40]} 16. Ne2 {[%emt 0:02:26]} Rab8 {[%emt 0:09:13]} 17. Rab1 {[%emt 0:03:16]} Nd3 {[%emt 0:30:01]} 18. Nd4 {[%emt 0:05:14]} Bd7 {[%emt 0:00:29]} 19. b3 {[%emt 0:11:00]} c5 {[%emt 0:01:11]} 20. Nf3 {[%emt 0:01:08]} Bc6 {[%emt 0:14:15]} 21. Qxc4 {[%emt 0:13:45]} Nb2 {[%emt 0:02:20]} 22. Rxb2 {[%emt 0:00:12]} Bxb2 {[%emt 0:00:03]} 23. Bxc5 {[%emt 0:00:55]} Qxe4 {[%emt 0:00:02]} 24. Qxe4 {[%emt 0:00:52]} Bxe4 {[%emt 0:00:02]} 25. Bxf8 {[%emt 0:00:07]} Kxf8 {[%emt 0:22:52]} 26. Rd7 {[%emt 0:03:58]} h6 {[%emt 0:00:29]} 27. Nd2 {[%emt 0:14:25]} Bf5 {[%emt 0:00:47]} 28. Rxc7 {[%emt 0:00:06]} Rd8 {[%emt 0:00:23]} 29. Nc4 {[%emt 0:05:52]} Bd4 {[%emt 0:00:02]} 30. g4 {[%emt 0:07:13]} Be6 {[%emt 0:00:03]} 31. Bf3 {[%emt 0:00:08]} Rd7 {[%emt 0:03:24]} 32. Rxd7 {[%emt 0:03:40]} Bxd7 {[%emt 0:00:02]} 33. Kg2 {[%emt 0:00:44]} Ke7 {[%emt 0:00:01]} 34. Bd5 {[%emt 0:01:34]} f5 {[%emt 0:00:15]} 35. f3 {[%emt 0:02:42]} Kf6 {[%emt 0:03:42]} 36. Kg3 {[%emt 0:02:21]} fxg4 {[%emt 0:00:42]} 37. fxg4 {[%emt 0:01:43]} h5 {[%emt 0:00:14]} 38. Kf4 {[%emt 0:05:21]} hxg4 {[%emt 0:00:03]} 39. hxg4 {[%emt 0:00:03]} g5+ {[%emt 0:00:03]} 40. Kf3 {[%emt 0:00:41]} Bc5 {[%emt 0:02:47]} 41. a3 {[%emt 0:51:45]} Bb5 {[%emt 0:51:32]} 42. b4 {[%emt 0:00:35]} Bxc4 {[%emt 0:00:33]} 43. Bxc4 {[%emt 0:00:04]} Bg1 {[%emt 0:00:19]} 44. Ke4 {[%emt 0:00:04]} Ke7 {[%emt 0:00:02]} 45. Kd5 {[%emt 0:00:39]} Kd7 {[%emt 0:00:01]} 46. a4 {[%emt 0:00:16]} Kc7 {[%emt 0:00:09]} 47. a5 {[%emt 0:00:24]} Be3 {[%emt 0:00:05]} 48. b5 {[%emt 0:00:37]} Bd2 {[%emt 0:00:21]} 49. b6+ {[%emt 0:00:30]} 1/2-1/2

[Event "FIDE Chesscom Grand Swiss 2019"]
[Site "Douglas-Isle of Man"]
[Date "2019.10.14"]
[Round "5.40"]
[White "Paehtz, Elisabeth"]
[Black "Kolbus, Dietmar"]
[Result "1/2-1/2"]
[ECO "D03"]
[WhiteElo "2489"]
[BlackElo "2300"]
[Annotator "ChessBase"]
[PlyCount "81"]
[EventDate "2019.10.10"]
[EventType "swiss"]
[EventCountry "GBR"]
[SourceTitle "playchess.com"]
[Source "ChessBase"]
[SourceQuality "1"]
[TimeControl "40/6000+30:20/3000+30:900+30"]

1. d4 {[%emt 0:01:16]} Nf6 {[%emt 0:00:01]} 2. Nf3 {[%emt 0:00:06]} g6 {[%emt 0:00:15]} 3. Bg5 {[%emt 0:00:06]} Bg7 {[%emt 0:00:06]} 4. Nbd2 {[%emt 0:00:04]} d5 {[%emt 0:00:34]} 5. e3 {[%emt 0:00:14]} c6 {[%emt 0:01:59]} 6. Be2 {[%emt 0:02:44]} Nbd7 {[%emt 0:04:09]} 7. h3 {[%emt 0:04:13]} Qa5 {[%emt 0:10:38]} 8. c3 {[%emt 0:05:20]} Ne4 {[%emt 0:03:14]} 9. b4 {[%emt 0:01:40]} Qd8 {[%emt 0:03:52]} 10. Nxe4 {[%emt 0:00:05]} dxe4 {[%emt 0:00:06]} 11. Nd2 {[%emt 0:00:05]} f5 {[%emt 0:01:07]} 12. Qb3 {[%emt 0:01:28]} Nf6 {[%emt 0:00:28]} 13. O-O {[%emt 0:06:50]} Nd5 {[%emt 0:07:49]} 14. c4 {[%emt 0:04:51]} Nc7 {[%emt 0:00:18]} 15. Rad1 {[%emt 0:04:00]} Be6 {[%emt 0:02:12]} 16. f3 {[%emt 0:01:30]} exf3 {[%emt 0:00:16]} 17. Nxf3 {[%emt 0:04:45]} b5 {[%emt 0:23:19]} 18. Bf4 {[%emt 0:07:45]} Bxc4 {[%emt 0:02:45]} 19. Bxc4 {[%emt 0:00:04]} bxc4 {[%emt 0:00:08]} 20. Qxc4 {[%emt 0:00:52]} Qd5 {[%emt 0:00:32]} 21. Rc1 {[%emt 0:11:01]} Qxc4 {[%emt 0:00:58]} 22. Rxc4 {[%emt 0:00:03]} Nd5 {[%emt 0:00:06]} 23. Rfc1 {[%emt 0:03:45]} O-O {[%emt 0:06:40]} 24. a3 {[%emt 0:07:27]} a5 {[%emt 0:00:39]} 25. Rxc6 {[%emt 0:00:14]} axb4 {[%emt 0:00:17]} 26. axb4 {[%emt 0:00:05]} Nxb4 {[%emt 0:00:12]} 27. Re6 {[%emt 0:00:43]} Nd3 {[%emt 0:00:44]} 28. Rc7 {[%emt 0:00:30]} Nxf4 {[%emt 0:00:42]} 29. exf4 {[%emt 0:00:08]} Bf6 {[%emt 0:00:42]} 30. Kf2 {[%emt 0:03:54]} Rac8 {[%emt 0:01:14]} 31. Rec6 {[%emt 0:00:18]} Rxc7 {[%emt 0:00:19]} 32. Rxc7 {[%emt 0:00:05]} Rd8 {[%emt 0:05:47]} 33. Ke3 {[%emt 0:00:21]} Rd5 {[%emt 0:09:59]} 34. g4 {[%emt 0:01:15]} Kf8 {[%emt 0:03:32]} 35. g5 {[%emt 0:02:07]} Bg7 {[%emt 0:00:07]} 36. h4 {[%emt 0:00:57]} Ra5 {[%emt 0:02:04]} 37. Rc8+ {[%emt 0:00:50]} Kf7 {[%emt 0:00:10]} 38. Rd8 {[%emt 0:00:03]} Ra3+ {[%emt 0:00:29]} 39. Ke2 {[%emt 0:00:14]} Ra2+ {[%emt 0:00:11]} 40. Ke3 {[%emt 0:00:06]} Ra3+ {[%emt 0:00:05]} 41. Ke2 {[%emt 0:51:25]} 1/2-1/2

[Event "FIDE Chesscom Grand Swiss 2019"]
[Site "Douglas-Isle of Man"]
[Date "2019.10.14"]
[Round "5.41"]
[White "Solomon, Kenny"]
[Black "Jansa, Vlastimil"]
[Result "1/2-1/2"]
[ECO "D85"]
[WhiteElo "2382"]
[BlackElo "2452"]
[Annotator "ChessBase"]
[PlyCount "127"]
[EventDate "2019.10.10"]
[EventType "swiss"]
[EventCountry "GBR"]
[SourceTitle "playchess.com"]
[Source "ChessBase"]
[SourceQuality "1"]
[TimeControl "40/6000+30:20/3000+30:900+30"]

1. d4 {[%emt 0:00:06]} Nf6 {[%emt 0:00:00]} 2. c4 {[%emt 0:00:18]} g6 {[%emt 0:00:10]} 3. Nc3 {[%emt 0:00:40]} d5 {[%emt 0:00:16]} 4. Nf3 {[%emt 0:00:34]} Bg7 {[%emt 0:00:09]} 5. cxd5 {[%emt 0:00:14]} Nxd5 {[%emt 0:00:05]} 6. e4 {[%emt 0:00:09]} Nxc3 {[%emt 0:00:09]} 7. bxc3 {[%emt 0:00:03]} c5 {[%emt 0:00:16]} 8. Be3 {[%emt 0:00:12]} Qa5 {[%emt 0:01:05]} 9. Qd2 {[%emt 0:00:27]} Nc6 {[%emt 0:00:52]} 10. Rb1 {[%emt 0:00:49]} a6 {[%emt 0:02:12]} 11. Rc1 {[%emt 0:00:19]} cxd4 {[%emt 0:02:47]} 12. cxd4 {[%emt 0:01:43]} Qxd2+ {[%emt 0:00:31]} 13. Kxd2 {[%emt 0:00:07]} e6 {[%emt 0:00:49]} 14. Bd3 {[%emt 0:00:44]} O-O {[%emt 0:03:16]} 15. h4 {[%emt 0:08:22]} Bd7 {[%emt 0:05:53]} 16. h5 {[%emt 0:25:04]} Rfc8 {[%emt 0:02:32]} 17. Rb1 {[%emt 0:03:36]} Na5 {[%emt 0:11:55]} 18. hxg6 {[%emt 0:02:51]} hxg6 {[%emt 0:01:27]} 19. e5 {[%emt 0:07:01]} Bb5 {[%emt 0:09:44]} 20. Bxb5 {[%emt 0:28:08]} axb5 {[%emt 0:00:05]} 21. Rxb5 {[%emt 0:00:02]} Nc4+ {[%emt 0:12:26]} 22. Kd3 {[%emt 0:00:02]} Nxe3 {[%emt 0:02:47]} 23. fxe3 {[%emt 0:02:10]} Rxa2 {[%emt 0:01:33]} 24. g4 {[%emt 0:03:31]} Rg2 {[%emt 0:15:00]} 25. g5 {[%emt 0:11:14]} Rc7 {[%emt 0:04:57]} 26. Rhb1 {[%emt 0:04:10]} Rg3 {[%emt 0:07:14]} 27. Rf1 {[%emt 0:00:02]} Rg2 {[%emt 0:06:11]} 28. Rb3 {[%emt 0:03:46]} Bf8 {[%emt 0:02:45]} 29. Rg1 {[%emt 0:00:16]} Rxg1 {[%emt 0:10:20]} 30. Nxg1 {[%emt 0:00:03]} Be7 {[%emt 0:00:32]} 31. Nf3 {[%emt 0:00:01]} Kf8 {[%emt 0:00:32]} 32. e4 {[%emt 0:01:02]} Rd7 {[%emt 0:00:40]} 33. Rb5 {[%emt 0:00:37]} Rc7 {[%emt 0:00:28]} 34. Rb1 {[%emt 0:01:46]} Rd7 {[%emt 0:00:21]} 35. Rb3 {[%emt 0:03:00]} Ke8 {[%emt 0:00:58]} 36. Ke3 {[%emt 0:01:17]} Kd8 {[%emt 0:00:44]} 37. Rb5 {[%emt 0:01:10]} Rc7 {[%emt 0:02:10]} 38. Kd3 {[%emt 0:02:22]} Kc8 {[%emt 0:01:42]} 39. Rb1 {[%emt 0:00:06]} Rd7 {[%emt 0:00:47]} 40. Rb5 {[%emt 0:00:31]} Rc7 {[%emt 0:01:24]} 41. Rb1 {[%emt 0:10:53]} Rd7 {[%emt 0:01:24]} 42. Rb2 {[%emt 0:04:37]} Kb8 {[%emt 0:04:14]} 43. Rb5 {[%emt 0:08:13]} Ka7 {[%emt 0:05:29]} 44. Rb1 {[%emt 0:11:57]} Ka6 {[%emt 0:03:15]} 45. Ra1+ {[%emt 0:01:26]} Kb5 {[%emt 0:00:47]} 46. Rb1+ {[%emt 0:00:49]} Ka4 {[%emt 0:03:14]} 47. Rc1 {[%emt 0:07:59]} b5 {[%emt 0:04:25]} 48. Rc8 {[%emt 0:00:23]} Bd8 {[%emt 0:01:46]} 49. Ra8+ {[%emt 0:02:48]} Kb4 {[%emt 0:01:36]} 50. Rb8 {[%emt 0:05:57]} Ka5 {[%emt 0:08:10]} 51. Ra8+ {[%emt 0:00:42]} Kb6 {[%emt 0:00:57]} 52. Rb8+ {[%emt 0:00:23]} Ka6 {[%emt 0:01:13]} 53. Ra8+ {[%emt 0:00:15]} Kb7 {[%emt 0:00:23]} 54. Ra1 {[%emt 0:00:22]} Be7 {[%emt 0:00:42]} 55. Kc3 {[%emt 0:01:10]} Rd8 {[%emt 0:05:13]} 56. Rh1 {[%emt 0:00:52]} Ra8 {[%emt 0:01:22]} 57. Kb2 {[%emt 0:00:15]} Ra3 {[%emt 0:02:38]} 58. Nd2 {[%emt 0:00:01]} Rd3 {[%emt 0:01:12]} 59. Nb3 {[%emt 0:00:02]} Rf3 {[%emt 0:08:45]} 60. Rg1 {[%emt 0:01:16]} Rf2+ {[%emt 0:02:16]} 61. Kc3 {[%emt 0:04:53]} Rf3+ {[%emt 0:01:41]} 62. Kc2 {[%emt 0:01:21]} Rf2+ {[%emt 0:01:45]} 63. Kc3 {[%emt 0:04:29]} Rf3+ {[%emt 0:03:11]} 64. Kc2 {[%emt 0:00:07]} 1/2-1/2